bitfinex-derivatives/quotes_BTCF0:USTF0_20251110
["timestamp","ask_amount","ask_price","bid_price","bid_amount"]
[1762804247044,0.13939387,105990.0,105980.0,0.1667058]
[1762804247555,0.62473946,105990.0,105980.0,0.00419803]
[1762804248456,0.62473946,105990.0,105980.0,0.002]
[1762804249755,0.50786387,105990.0,105980.0,0.0467]
[1762804250062,0.62473946,105990.0,105980.0,0.0467]
[1762804250459,0.62473946,105990.0,105980.0,0.06188803]
[1762804250650,0.62473946,105990.0,105980.0,0.04889803]
[1762804250849,0.62473946,105990.0,105980.0,0.00419803]
[1762804251152,0.62473946,105990.0,105980.0,0.002]
[1762804254656,0.62573946,105990.0,105980.0,0.001]
[1762804254963,0.1387201,105980.0,105970.0,0.06841669]
[1762804255152,0.61712836,105980.0,105970.0,0.07061472]
[1762804255659,0.50025277,105980.0,105970.0,0.07061472]
[1762804255961,0.61712836,105980.0,105970.0,0.07061472]
[1762804256349,0.61712836,105980.0,105970.0,0.16501372]
[1762804257045,0.61712836,105980.0,105970.0,0.07061472]
[1762804257257,0.62982836,105980.0,105970.0,0.05762472]
[1762804257859,0.51295277,105980.0,105970.0,0.05762472]
[1762804258059,0.62982836,105980.0,105970.0,0.05762472]
[1762804259853,0.62982836,105980.0,105970.0,0.07107472]
[1762804260049,0.61712836,105980.0,105970.0,0.07107472]
[1762804260254,0.62982836,105980.0,105970.0,0.05762472]
[1762804260454,0.61712836,105980.0,105970.0,0.16547372]
[1762804260653,0.50025277,105980.0,105970.0,0.16547372]
[1762804260850,0.00073267,105980.0,105970.0,0.16547372]
[1762804261051,0.25536736,106000.0,105990.0,0.05684]
[1762804261356,0.61690003,106000.0,105990.0,0.05903803]
[1762804262164,0.50202444,106000.0,105990.0,0.15341923]
[1762804262469,0.61890003,106000.0,105990.0,0.15341923]
[1762804263069,0.61890003,106000.0,105990.0,0.05903803]
[1762804263366,0.61990003,106000.0,105990.0,0.05903803]
[1762804263962,0.61690003,106000.0,105990.0,0.05903803]
[1762804264261,0.62457003,106000.0,105990.0,0.05903803]
[1762804265073,0.62657003,106000.0,105990.0,0.05903803]
[1762804266859,0.62657003,106000.0,105990.0,0.04558803]
[1762804267259,0.62657003,106000.0,105990.0,0.02449803]
[1762804267466,0.04397,105980.0,105970.0,0.52275959]
[1762804267671,0.25596836,105980.0,105970.0,0.52495762]
[1762804268164,0.25596836,105980.0,105970.0,0.52496372]
[1762804268566,0.25596836,105980.0,105970.0,0.52596372]
[1762804268766,0.04470267,105980.0,105970.0,0.52596372]
[1762804269357,0.13909277,105980.0,105970.0,0.52596372]
[1762804269563,0.13909277,105980.0,105970.0,0.52696372]
[1762804269863,0.61676836,105980.0,105970.0,0.07176472]
[1762804270065,0.61676836,105980.0,105970.0,0.07076472]
[1762804270268,0.61676836,105980.0,105970.0,0.16416372]
[1762804270468,0.61676836,105980.0,105970.0,0.06976472]
[1762804270669,0.62946836,105980.0,105970.0,0.01292472]
[1762804270873,0.62946836,105980.0,105970.0,0.00243569]
[1762804271365,0.00173267,105980.0,105970.0,0.52493192]
[1762804271558,0.00173267,105980.0,105970.0,0.63135028]
[1762804271755,0.001,105980.0,105970.0,0.63135028]
[1762804273168,0.40491177,106000.0,105990.0,0.1512212]
[1762804273372,0.50001674,106000.0,105990.0,0.15341923]
[1762804274164,0.40564444,106000.0,105990.0,0.15341923]
[1762804274364,0.40664444,106000.0,105990.0,0.15341923]
[1762804274861,0.50101674,106000.0,105990.0,0.05903803]
[1762804275066,0.50101674,106000.0,105990.0,0.15341923]
[1762804275467,0.14021674,106000.0,105990.0,0.15341923]
[1762804276173,0.04584444,106000.0,105990.0,0.15341923]
[1762804276664,0.04584444,106000.0,105990.0,0.22086082]
[1762804277067,0.00187444,106000.0,105990.0,0.22086082]
[1762804277266,0.00187444,106000.0,105990.0,0.58166082]
[1762804277668,0.00114177,106000.0,105990.0,0.58166082]
[1762804278071,0.00114177,106000.0,105990.0,0.59852122]
[1762804278474,0.00114177,106000.0,105990.0,0.76996011]
[1762804279073,1.77e-06,106000.0,105990.0,0.92153812]
[1762804279268,0.1379847,106020.0,106010.0,0.1517334]
[1762804279574,0.00073267,106020.0,106010.0,0.15393143]
[1762804279762,0.04436267,106020.0,106010.0,0.51473143]
[1762804280371,0.14371717,106020.0,106010.0,0.51473143]
[1762804281173,0.14271717,106020.0,106010.0,0.51473143]
[1762804281978,0.14171717,106020.0,106010.0,0.51473143]
[1762804283481,0.14171717,106020.0,106010.0,0.05956803]
[1762804283685,0.14171717,106020.0,106010.0,0.51473143]
[1762804284475,0.14171717,106020.0,106010.0,0.05956803]
[1762804284978,0.14171717,106020.0,106010.0,0.15393143]
[1762804286883,0.14171717,106020.0,106010.0,0.05956803]
[1762804287093,0.68667606,106020.0,106010.0,0.04694803]
[1762804287583,0.68667606,106020.0,106010.0,0.14131143]
[1762804287978,0.68667606,106020.0,106010.0,0.15393143]
[1762804288187,0.50251717,106020.0,106010.0,0.15393143]
[1762804288783,0.14171717,106020.0,106010.0,0.51473143]
[1762804292187,0.14171717,106020.0,106010.0,0.15393143]
[1762804292597,0.14171717,106020.0,106010.0,0.51473143]
[1762804293303,0.14171717,106020.0,106010.0,0.15393143]
[1762804295204,0.67395606,106020.0,106010.0,0.05956803]
[1762804295400,0.50251717,106020.0,106010.0,0.15393143]
[1762804295601,0.14171717,106020.0,106010.0,0.15393143]
[1762804299309,0.14171717,106020.0,106010.0,0.51473143]
[1762804299507,0.14171717,106020.0,106010.0,0.15393143]
[1762804301305,0.11636995,106020.0,106010.0,0.22117946]
[1762804306301,0.11636995,106020.0,106010.0,0.23823342]
[1762804306911,0.64860884,106020.0,106010.0,0.14387002]
[1762804307114,0.64860884,106020.0,106010.0,0.30565981]
[1762804307408,0.47716995,106020.0,106010.0,0.22135782]
[1762804307614,0.11636995,106020.0,106010.0,0.22135782]
[1762804307917,0.47716995,106020.0,106010.0,0.22135782]
[1762804308101,0.47716995,106020.0,106010.0,0.12699442]
[1762804308306,0.47716995,106020.0,106010.0,0.22135782]
[1762804308514,0.64860884,106020.0,106010.0,0.22135782]
[1762804309016,0.64860884,106020.0,106010.0,0.15393143]
[1762804309314,0.64860884,106020.0,106010.0,0.05956803]
[1762804309710,0.64860884,106020.0,106010.0,0.12705493]
[1762804311017,0.64860884,106020.0,106010.0,0.0674869]
[1762804311218,0.1116234,106010.0,106000.0,0.15251407]
[1762804311518,0.64386229,106010.0,106000.0,0.12564645]
[1762804311813,0.64386229,106010.0,106000.0,0.12784448]
[1762804313117,0.64486229,106010.0,106000.0,0.12784448]
[1762804314521,0.64486229,106010.0,106000.0,0.22221678]
[1762804315011,0.4734234,106010.0,106000.0,0.22221678]
[1762804315822,0.0953634,106010.0,106000.0,0.22221678]
[1762804316121,0.0953634,106010.0,106000.0,0.1547121]
[1762804316321,0.001,106010.0,106000.0,0.1547121]
[1762804317322,0.1039934,106010.0,106000.0,0.1547121]
[1762804319626,0.00963,106010.0,106000.0,0.1547121]
[1762804319920,0.4734234,106010.0,106000.0,0.0603398]
[1762804320126,0.64486229,106010.0,106000.0,0.1547121]
[1762804320623,0.64486229,106010.0,106000.0,0.0603398]
[1762804320822,0.56693788,106010.0,106000.0,0.1547121]
[1762804321013,0.47257448,106010.0,106000.0,0.1547121]
[1762804321216,0.001,106010.0,106000.0,0.1547121]
[1762804321516,0.1039934,106010.0,106000.0,0.22221678]
[1762804321825,0.0953634,106010.0,106000.0,0.22221678]
[1762804322024,0.1039934,106010.0,106000.0,0.22221678]
[1762804322220,0.001,106010.0,106000.0,0.1547121]
[1762804322417,0.001,106010.0,106000.0,0.69332857]
[1762804322613,0.00014177,106030.0,106020.0,0.1519845]
[1762804322814,0.09448737,106030.0,106020.0,0.22159708]
[1762804323018,0.09448737,106030.0,106020.0,0.12724258]
[1762804323019,0.20526185,106030.0,106020.0,0.12724258]
[1762804323324,0.20526185,106030.0,106020.0,0.22159708]
[1762804323520,0.20526185,106030.0,106020.0,0.12724258]
[1762804323729,0.56806185,106030.0,106020.0,0.12724258]
[1762804324828,0.56906185,106030.0,106020.0,0.12724258]
[1762804325125,0.56906185,106030.0,106020.0,0.22159708]
[1762804325426,0.56906185,106030.0,106020.0,0.12724258]
[1762804325626,0.56906185,106030.0,106020.0,0.05982803]
[1762804325830,0.56906185,106030.0,106020.0,0.10198455]
[1762804326032,0.1116145,106020.0,106010.0,0.12504455]
[1762804326322,0.1116145,106020.0,106000.0,0.03433177]
[1762804326323,0.1116234,106010.0,106000.0,0.03433177]
[1762804326520,0.56593788,106010.0,106000.0,0.1309021]
[1762804326726,0.56593788,106010.0,106000.0,0.22137665]
[1762804327419,0.4724234,106010.0,106000.0,0.22137665]
[1762804327620,0.20513788,106010.0,106000.0,0.22137665]
[1762804328826,0.1116234,106010.0,106000.0,0.22137665]
[1762804329026,0.1126234,106010.0,106000.0,0.22137665]
[1762804329230,0.001,106010.0,106000.0,0.22137665]
[1762804329726,0.001,106010.0,106000.0,0.58217665]
[1762804330632,0.0953634,106010.0,106000.0,0.58217665]
[1762804331025,0.1039934,106010.0,106000.0,0.58217665]
[1762804331230,0.1126234,106010.0,106000.0,0.58217665]
[1762804331731,0.0953634,106010.0,106000.0,0.58217665]
[1762804332027,0.001,106010.0,106000.0,0.58217665]
[1762804332425,0.001,106010.0,106000.0,0.5147621]
[1762804332730,0.001,106010.0,106000.0,0.59906409]
[1762804333530,0.001,106010.0,106000.0,0.5147621]
[1762804333931,0.001,106010.0,106000.0,0.63383964]
[1762804335331,0.0953634,106010.0,106000.0,0.63383964]
[1762804335833,0.1126234,106010.0,106000.0,0.71808618]
[1762804336033,0.1126234,106010.0,106000.0,0.59900864]
[1762804336230,0.001,106010.0,106000.0,0.59900864]
[1762804336628,0.0953634,106010.0,106000.0,0.59900864]
[1762804339025,0.1126234,106010.0,106000.0,0.59900864]
[1762804339425,0.2294812,106010.0,106000.0,0.59900864]
[1762804340730,0.2294812,106010.0,106000.0,0.5147621]
[1762804341033,0.1126234,106010.0,106000.0,0.5147621]
[1762804341537,0.1039934,106010.0,106000.0,0.5147621]
[1762804342837,0.1126234,106010.0,106000.0,0.5147621]
[1762804343526,0.4734234,106010.0,106000.0,0.1539621]
[1762804343727,0.4734234,106010.0,106000.0,0.22135001]
[1762804344235,0.5902812,106010.0,106000.0,0.22135001]
[1762804345740,0.2294812,106010.0,106000.0,0.22135001]
[1762804346040,0.2294812,106010.0,106000.0,0.58215001]
[1762804346243,0.001,106010.0,106000.0,0.5147621]
[1762804349045,0.001,106010.0,106000.0,0.60824353]
[1762804349246,0.09448143,106010.0,106000.0,0.60824353]
[1762804349545,0.001,106010.0,106000.0,0.60824353]
[1762804349744,0.5487751,106030.0,106010.0,0.1531334]
[1762804349939,0.1879751,106030.0,106020.0,0.67699945]
[1762804350144,0.1879751,106030.0,106020.0,0.58351802]
[1762804350343,0.1976051,106030.0,106020.0,0.51612253]
[1762804350546,0.2072351,106030.0,106020.0,0.58349313]
[1762804351150,0.2102351,106030.0,106020.0,0.58349313]
[1762804351647,0.5710351,106030.0,106020.0,0.12833863]
[1762804351849,0.2102351,106030.0,106020.0,0.12833863]
[1762804352050,0.5710351,106030.0,106020.0,0.22269313]
[1762804352647,0.11575367,106030.0,106020.0,0.22269313]
[1762804352854,0.2092351,106030.0,106020.0,0.22269313]
[1762804355553,0.5700351,106030.0,106020.0,0.12833863]
[1762804356058,0.5700351,106030.0,106020.0,0.22269313]
[1762804356653,0.5700351,106030.0,106020.0,0.12833863]
[1762804356854,0.66351653,106030.0,106020.0,0.12833863]
[1762804359765,0.66351653,106030.0,106020.0,0.00219803]
[1762804360369,0.66351653,106030.0,106020.0,0.02476803]
[1762804362270,0.66351653,106030.0,106020.0,0.04745803]
[1762804363864,0.66351653,106030.0,106020.0,0.06096803]
[1762804366869,0.01926,106020.0,106010.0,0.1261406]
[1762804367067,0.66137736,106020.0,106010.0,0.12833863]
[1762804368264,0.66237736,106020.0,106010.0,0.12833863]
[1762804368468,0.66237736,106020.0,106010.0,0.22270203]
[1762804368670,0.66237736,106020.0,106010.0,0.12833863]
[1762804369070,0.66237736,106020.0,106010.0,0.06096803]
[1762804369779,0.66237736,106020.0,106010.0,0.15533143]
[1762804369971,0.66237736,106020.0,106010.0,0.06096803]
[1762804372578,0.66237736,106020.0,106010.0,0.12833863]
[1762804372777,0.66237736,106020.0,106010.0,0.22270203]
[1762804374271,0.66237736,106020.0,106010.0,0.12833863]
[1762804375175,0.66237736,106020.0,106010.0,0.22270203]
[1762804375875,0.30157736,106020.0,106010.0,0.22270203]
[1762804376384,0.20809593,106020.0,106010.0,0.31618346]
[1762804377377,0.20809593,106020.0,106010.0,0.22270203]
[1762804379682,0.30157736,106020.0,106010.0,0.22270203]
[1762804380382,0.20809593,106020.0,106010.0,0.22270203]
[1762804380983,0.20809593,106020.0,106010.0,0.15533143]
[1762804381482,0.30157736,106020.0,106010.0,0.15533143]
[1762804382072,0.30157736,106020.0,106010.0,0.12837965]
[1762804382275,0.30157736,106020.0,106010.0,0.06096803]
[1762804382776,0.1146145,106020.0,106010.0,0.15533143]
[1762804383077,0.20809593,106020.0,106010.0,0.15533143]
[1762804383277,0.20809593,106020.0,106010.0,0.23957797]
[1762804383581,0.30157736,106020.0,106010.0,0.23957797]
[1762804383776,0.66237736,106020.0,106010.0,0.12835419]
[1762804389679,0.4754145,106020.0,106010.0,0.22271759]
[1762804389879,0.66237736,106020.0,106010.0,0.22271759]
[1762804390982,0.66237736,106020.0,106010.0,0.15533143]
[1762804391586,0.30157736,106020.0,106010.0,0.23957797]
[1762804391992,0.19846593,106020.0,106010.0,0.40051149]
[1762804392190,0.19846593,106020.0,106010.0,0.31626495]
[1762804392588,0.001,106020.0,106010.0,0.67706495]
[1762804392792,0.18883593,106020.0,106010.0,0.60961286]
[1762804393188,0.19846593,106020.0,106010.0,0.6938594]
[1762804393388,0.19846593,106020.0,106010.0,0.60961286]
[1762804393589,0.20809593,106020.0,106010.0,0.6938594]
[1762804393795,0.20809593,106020.0,106010.0,0.60037797]
[1762804394992,0.20809593,106020.0,106010.0,0.06096803]
[1762804395300,0.30157736,106020.0,106010.0,0.15533143]
[1762804395598,0.20809593,106020.0,106010.0,0.15533143]
[1762804396486,0.20809593,106020.0,106010.0,0.24881286]
[1762804398995,0.20808966,106020.0,106010.0,0.15533143]
[1762804399196,0.20808966,106020.0,106010.0,0.23957797]
[1762804399496,0.20808966,106020.0,106010.0,0.06096803]
[1762804399798,0.56888966,106020.0,106010.0,0.15533143]
[1762804400594,0.56888966,106020.0,106010.0,0.22278204]
[1762804402491,0.20808966,106020.0,106010.0,0.22278204]
[1762804402691,0.02026,106020.0,106010.0,0.58358204]
[1762804402900,0.001,106020.0,106010.0,0.51613143]
[1762804404398,0.0953545,106020.0,106010.0,0.51613143]
[1762804404703,0.20808966,106020.0,106010.0,0.51613143]
[1762804406903,0.20808966,106020.0,106010.0,0.60037797]
[1762804407600,0.20808966,106020.0,106010.0,0.51613143]
[1762804409295,0.20808966,106020.0,106010.0,0.60037797]
[1762804410208,0.18882966,106020.0,106010.0,0.60037797]
[1762804411004,0.001,106020.0,106010.0,0.60037797]
[1762804411205,0.001,106020.0,106010.0,0.69385313]
[1762804411394,0.001,106020.0,106010.0,0.72868413]
[1762804412897,0.001,106020.0,106010.0,0.51613143]
[1762804413604,0.0953545,106020.0,106010.0,0.51613143]
[1762804414607,0.0953545,106020.0,106010.0,0.60033947]
[1762804415694,0.20808966,106020.0,106010.0,0.50597607]
[1762804415899,0.20808966,106020.0,106010.0,0.06096803]
[1762804416099,0.20808966,106020.0,106010.0,0.15533143]
[1762804416604,0.20808966,106020.0,106010.0,0.06096803]
[1762804416806,0.56888966,106020.0,106010.0,0.06096803]
[1762804417001,0.66236482,106020.0,106010.0,0.12836183]
[1762804417204,0.67199482,106020.0,106010.0,0.0673938]
[1762804417410,0.1136234,106010.0,106000.0,0.00014177]
[1762804417705,0.56789856,106010.0,106000.0,0.00014177]
[1762804418108,0.56789856,106010.0,106000.0,0.02157177]
[1762804418407,0.56789856,106010.0,106000.0,0.00014177]
[1762804418607,0.1136412,105990.0,105980.0,0.14150804]
[1762804418797,0.20711636,105990.0,105980.0,0.23809617]
[1762804419901,0.20711636,105990.0,105980.0,0.15388813]
[1762804420106,0.11273516,105990.0,105980.0,0.15388813]
[1762804420404,0.00977177,106000.0,105990.0,0.1512912]
[1762804420702,0.00014177,106000.0,105990.0,0.68143134]
[1762804420906,0.00014177,106000.0,105990.0,0.58795618]
[1762804421203,0.00014177,106000.0,105990.0,0.68143134]
[1762804421396,0.20737566,106020.0,106010.0,0.1512734]
[1762804421593,0.20737566,106020.0,106010.0,0.51427143]
[1762804421594,0.01954,106020.0,106010.0,0.51427143]
[1762804421794,0.56816656,106030.0,106020.0,0.1512645]
[1762804421993,0.56816656,106030.0,106020.0,0.05910803]
[1762804422302,0.56816656,106030.0,106020.0,0.15346253]
[1762804422498,0.20736656,106030.0,106020.0,0.15346253]
[1762804422899,0.56816656,106030.0,106020.0,0.15346253]
[1762804424508,0.57016656,106030.0,106020.0,0.15346253]
[1762804425607,0.57016656,106030.0,106020.0,0.05910803]
[1762804426612,0.57016656,106030.0,106020.0,0.15346253]
[1762804427522,0.57016656,106030.0,106020.0,0.05910803]
[1762804429324,0.57016656,106030.0,106020.0,0.15346253]
[1762804429823,0.57016656,106030.0,106020.0,0.05910803]
[1762804430019,0.11501516,106030.0,106020.0,0.15346253]
[1762804430223,0.20936076,106030.0,106020.0,0.15346253]
[1762804431528,0.20936076,106030.0,106020.0,0.22076201]
[1762804431928,0.20936076,106030.0,106020.0,0.12640751]
[1762804432227,0.20936076,106030.0,106020.0,0.22076201]
[1762804435325,0.20936076,106030.0,106020.0,0.12640751]
[1762804435625,0.20936076,106030.0,106020.0,0.05910803]
[1762804437928,0.20936076,106030.0,106020.0,0.15346253]
[1762804439627,0.20936076,106030.0,106020.0,0.05910803]
[1762804440025,0.20936076,106030.0,106020.0,0.15346253]
[1762804440731,0.20936076,106030.0,106020.0,0.05910803]
[1762804441322,0.20936076,106030.0,106020.0,0.15346253]
[1762804441518,0.20936076,106030.0,106020.0,0.02362803]
[1762804441724,0.1138945,106020.0,106010.0,0.15262737]
[1762804442028,0.30084482,106020.0,106010.0,0.0604698]
[1762804442219,0.31061482,106020.0,106010.0,0.06749536]
[1762804442531,0.31061482,106020.0,106010.0,0.0023398]
[1762804442732,0.67141482,106020.0,106010.0,0.0245498]
[1762804443133,0.67241482,106020.0,106010.0,0.0245498]
[1762804443530,0.67241482,106020.0,106010.0,0.02235177]
[1762804443727,0.67241482,106020.0,106010.0,0.00014177]
[1762804443932,0.67241482,106020.0,105990.0,0.12548359]
[1762804443933,0.1139123,106000.0,105990.0,0.12548359]
[1762804444233,0.4747123,106000.0,105990.0,0.12768162]
[1762804444432,0.56818746,106000.0,105990.0,0.12768162]
[1762804445036,0.56818746,106000.0,105990.0,0.12868162]
[1762804445530,0.56818746,106000.0,105990.0,0.06132803]
[1762804446728,0.56918746,106000.0,105990.0,0.12868162]
[1762804446933,0.56918746,106000.0,105990.0,0.06132803]
[1762804448037,0.56918746,106000.0,105990.0,0.12868162]
[1762804448329,0.56918746,106000.0,105990.0,0.06032803]
[1762804448530,0.56918746,106000.0,105990.0,0.00219803]
[1762804448729,0.1139212,105990.0,105980.0,0.12535536]
[1762804448933,0.56819636,105990.0,105980.0,0.12755339]
[1762804449132,0.56819636,105990.0,105980.0,0.0601998]
[1762804449338,0.56819636,105990.0,105980.0,0.13394938]
[1762804449535,0.56819636,105990.0,105980.0,0.0601998]
[1762804450437,0.56819636,105990.0,105980.0,0.0611998]
[1762804451634,0.38034,105990.0,105980.0,0.1555899]
[1762804451835,0.4747183,106000.0,105990.0,0.1522412]
[1762804452038,0.56819346,106000.0,105990.0,0.15443923]
[1762804453432,0.56919346,106000.0,105990.0,0.15443923]
[1762804454231,0.20839346,106000.0,105990.0,0.15443923]
[1762804454831,0.56919346,106000.0,105990.0,0.15443923]
[1762804455029,0.20839346,106000.0,105990.0,0.15443923]
[1762804455640,0.20838746,106000.0,105990.0,0.15443923]
[1762804456031,0.1149123,106000.0,105990.0,0.51523923]
[1762804456843,0.1149123,106000.0,105990.0,0.58259282]
[1762804457041,0.1149123,106000.0,105990.0,0.58359282]
[1762804457341,0.1149123,106000.0,105990.0,0.51623923]
[1762804457741,0.1139123,106000.0,105990.0,0.51623923]
[1762804457942,0.1139123,106000.0,105990.0,0.58359282]
[1762804458331,0.20738746,106000.0,105990.0,0.58359282]
[1762804458536,0.1139123,106000.0,105990.0,0.22279282]
[1762804458840,0.20738746,106000.0,105990.0,0.15543923]
[1762804459234,0.20738746,106000.0,105990.0,0.22279282]
[1762804459434,0.20738746,106000.0,105990.0,0.58359282]
[1762804459635,0.11301516,106000.0,105990.0,0.58359282]
[1762804460251,0.20738746,106000.0,105990.0,0.58359282]
[1762804460737,0.20738746,106000.0,105990.0,0.51623923]
[1762804460937,0.11305267,106000.0,105990.0,0.51623923]
[1762804461339,0.20742497,106000.0,105990.0,0.51623923]
[1762804463043,0.01968177,106010.0,106000.0,0.1516523]
[1762804463250,0.1138835,106040.0,106030.0,0.05728]
[1762804463447,0.56819617,106040.0,106030.0,0.15382363]
[1762804463648,0.66170884,106040.0,106030.0,0.15382363]
[1762804463838,0.30090884,106040.0,106030.0,0.15382363]
[1762804464035,0.66170884,106040.0,106030.0,0.05947803]
[1762804464440,0.66270884,106040.0,106030.0,0.05947803]
[1762804464734,0.30190884,106040.0,106030.0,0.15382363]
[1762804465542,0.30190884,106040.0,106030.0,0.05947803]
[1762804465741,0.30190884,106040.0,106030.0,0.15382363]
[1762804467345,0.20839617,106040.0,106030.0,0.15382363]
[1762804468148,0.0953435,106040.0,106030.0,0.6081363]
[1762804468342,0.19862617,106040.0,106030.0,0.2473363]
[1762804468854,0.20839617,106040.0,106030.0,0.67548989]
[1762804469152,0.20839617,106040.0,106030.0,0.6081363]
[1762804469355,0.20839617,106040.0,106030.0,0.51462363]
[1762804470756,0.1148835,106040.0,106030.0,0.51462363]
[1762804471052,0.20839617,106040.0,106030.0,0.51462363]
[1762804472649,0.11405267,106040.0,106030.0,0.6081363]
[1762804472856,0.001,106040.0,106030.0,0.6081363]
[1762804473548,0.0953367,106040.0,106030.0,0.42027803]
[1762804473750,0.19861937,106040.0,106030.0,0.42027803]
[1762804474058,0.20838937,106040.0,106030.0,0.51462363]
[1762804474245,0.18884937,106040.0,106030.0,0.6081363]
[1762804475049,0.19861937,106040.0,106030.0,0.6081363]
[1762804475256,0.19861937,106040.0,106030.0,0.2473363]
[1762804477458,0.30190204,106040.0,106030.0,0.05947803]
[1762804477652,0.20838937,106040.0,106030.0,0.05947803]
[1762804477956,0.30190204,106040.0,106030.0,0.05947803]
[1762804478262,0.001,106040.0,106030.0,0.2473363]
[1762804478462,0.09447007,106050.0,106040.0,0.1516167]
[1762804478761,0.18798274,106050.0,106040.0,0.2473274]
[1762804479053,0.09365444,106050.0,106040.0,0.6081274]
[1762804479557,0.09465444,106050.0,106040.0,0.2473274]
[1762804480451,0.18898224,106050.0,106040.0,0.2473274]
[1762804480659,0.18898224,106050.0,106040.0,0.6081274]
[1762804480855,0.19875224,106050.0,106040.0,0.6081274]
[1762804482257,0.09465444,106050.0,106040.0,0.6081274]
[1762804482459,0.00114177,106050.0,106040.0,0.6081274]
[1762804483048,0.00114177,106050.0,106040.0,0.70164007]
[1762804483243,0.00114177,106050.0,106040.0,0.6081274]
[1762804483859,0.00114177,106050.0,106040.0,0.76899366]
[1762804484050,0.00114177,106050.0,106040.0,0.67548099]
[1762804484456,0.09465444,106050.0,106040.0,0.67548099]
[1762804484957,0.09465444,106050.0,106040.0,0.6081274]
[1762804485159,0.18898224,106050.0,106040.0,0.6081274]
[1762804487252,0.18898224,106050.0,106040.0,0.67548099]
[1762804488262,0.19875224,106050.0,106040.0,0.67548099]
[1762804488562,0.18898224,106050.0,106040.0,0.67548099]
[1762804489063,0.18798224,106050.0,106040.0,0.67548099]
[1762804489254,0.18798224,106050.0,106040.0,0.67648099]
[1762804489453,0.18798224,106050.0,106040.0,0.67748099]
[1762804491267,0.20752224,106050.0,106040.0,0.67748099]
[1762804492464,0.20752224,106050.0,106040.0,0.58396832]
[1762804492667,0.20752224,106050.0,106040.0,0.67748099]
[1762804493266,0.20752224,106050.0,106040.0,0.58396832]
[1762804493564,0.20752224,106050.0,106040.0,0.67748099]
[1762804494566,0.20752224,106050.0,106040.0,0.58396832]
[1762804494760,0.09446957,106050.0,106040.0,0.67748099]
[1762804495073,0.18798224,106050.0,106040.0,0.67748099]
[1762804495459,0.19775224,106050.0,106040.0,0.67748099]
[1762804495763,0.20752224,106050.0,106040.0,0.67748099]
[1762804496271,0.20752224,106050.0,106040.0,0.58396832]
[1762804496563,0.20752224,106050.0,106040.0,0.67748099]
[1762804497371,0.20752224,106050.0,106040.0,0.58396832]
[1762804497560,0.20752224,106050.0,106040.0,0.67748099]
[1762804497960,0.20752224,106050.0,106040.0,0.48963162]
[1762804498170,0.20752224,106050.0,106040.0,0.58396832]
[1762804498367,0.20752224,106050.0,106040.0,0.48963162]
[1762804499071,0.20752224,106050.0,106040.0,0.06147803]
[1762804500362,0.66183491,106050.0,106040.0,0.06147803]
[1762804500562,0.66183491,106050.0,106040.0,0.002]
[1762804501073,0.66183491,106050.0,106040.0,0.00018036]
[1762804501473,0.66183491,106050.0,106040.0,0.06122839]
[1762804501874,0.66183491,106050.0,106040.0,0.06204803]
[1762804502076,0.66183491,106050.0,106040.0,0.06304803]
[1762804502375,0.47480957,106050.0,106040.0,0.06304803]
[1762804502572,0.66183491,106050.0,106040.0,0.06204803]
[1762804502774,0.66283491,106050.0,106040.0,0.06104803]
[1762804505577,0.46603957,106050.0,106040.0,0.15538473]
[1762804505880,0.18898224,106050.0,106040.0,0.6096974]
[1762804506285,0.09465444,106050.0,106040.0,0.6096974]
[1762804506471,0.18898224,106050.0,106040.0,0.67705099]
[1762804506979,0.20852224,106050.0,106040.0,0.48920162]
[1762804507182,0.20852224,106050.0,106040.0,0.58353832]
[1762804509278,0.20852224,106050.0,106040.0,0.48920162]
[1762804509481,0.30203491,106050.0,106040.0,0.12840162]
[1762804510178,0.20852224,106050.0,106040.0,0.12840162]
[1762804510680,0.30203491,106050.0,106040.0,0.12840162]
[1762804510979,0.20852224,106050.0,106040.0,0.12840162]
[1762804511479,0.20852224,106050.0,106040.0,0.58353832]
[1762804511874,0.20852224,106050.0,106040.0,0.22273832]
[1762804512177,0.20852224,106050.0,106040.0,0.12840162]
[1762804512483,0.20852224,106050.0,106040.0,0.22273832]
[1762804514081,0.20852224,106050.0,106040.0,0.12840162]
[1762804514270,0.66283491,106050.0,106040.0,0.06955162]
[1762804514470,0.1138767,106040.0,106030.0,0.21040557]
[1762804514778,0.30090204,106040.0,106030.0,0.12841162]
[1762804516075,0.30090204,106040.0,106030.0,0.12941162]
[1762804517986,0.30090204,106040.0,106030.0,0.22375722]
[1762804518285,0.30090204,106040.0,106030.0,0.12941162]
[1762804519978,0.30090204,106040.0,106030.0,0.22375722]
[1762804520784,0.66170204,106040.0,106030.0,0.15640363]
[1762804520987,0.20733184,106040.0,106030.0,0.15640363]
[1762804521682,0.20733184,106040.0,106030.0,0.06105803]
[1762804521987,0.20733184,106040.0,106030.0,0.06205803]
[1762804523190,0.20733184,106040.0,106030.0,0.15640363]
[1762804523379,0.20733184,106040.0,106030.0,0.51720363]
[1762804523689,0.20733184,106040.0,106030.0,0.22375722]
[1762804525190,0.20733184,106040.0,106030.0,0.58455722]
[1762804525489,0.20733184,106040.0,106030.0,0.49021162]
[1762804525982,0.20733184,106040.0,106030.0,0.12941162]
[1762804528393,0.20733184,106040.0,106030.0,0.22375722]
[1762804530291,0.20746471,106050.0,106040.0,0.1514667]
[1762804530494,0.20746471,106050.0,106040.0,0.22103213]
[1762804530693,0.00014177,106050.0,106040.0,0.58183213]
[1762804530992,0.00014177,106050.0,106040.0,0.67528727]
[1762804531295,0.10423957,106050.0,106040.0,0.69211185]
[1762804531495,0.10523957,106050.0,106040.0,0.59865671]
[1762804531691,0.10623957,106050.0,106040.0,0.59865671]
[1762804531890,0.00214177,106050.0,106040.0,0.69211185]
[1762804532687,0.00214177,106050.0,106040.0,0.60791987]
[1762804532892,0.09646957,106050.0,106040.0,0.60791987]
[1762804533693,0.09646957,106050.0,106040.0,0.42012803]
[1762804533991,0.11600957,106050.0,106040.0,0.51446473]
[1762804534190,0.10623957,106050.0,106040.0,0.51446473]
[1762804534395,0.11600957,106050.0,106040.0,0.51446473]
[1762804534595,0.11600957,106050.0,106040.0,0.59865671]
[1762804535698,0.09646957,106050.0,106040.0,0.59865671]
[1762804538594,0.20946471,106050.0,106040.0,0.59865671]
[1762804540899,0.19969471,106050.0,106040.0,0.51446473]
[1762804541299,0.10623957,106050.0,106040.0,0.51446473]
[1762804543301,0.19969471,106050.0,106040.0,0.51446473]
[1762804543501,0.20946471,106050.0,106040.0,0.22097328]
[1762804544002,0.20946471,106050.0,106040.0,0.58177328]
[1762804545800,0.19969471,106050.0,106040.0,0.58177328]
[1762804547702,0.20946471,106050.0,106040.0,0.58177328]
[1762804550603,0.20946471,106050.0,106040.0,0.51446473]
[1762804551602,0.20946471,106050.0,106040.0,0.59865671]
[1762804552394,0.09646957,106050.0,106040.0,0.51446473]
[1762804552596,0.09559691,106050.0,106040.0,0.51446473]
[1762804552795,0.09646957,106050.0,106040.0,0.51446473]
[1762804553395,0.30291985,106050.0,106040.0,0.15366473]
[1762804553595,0.20946471,106050.0,106040.0,0.15366473]
[1762804555400,0.20946471,106050.0,106040.0,0.23785671]